{"text_format":"3","workbook":"xlsx","n_sheets":2,"sheets":["RAS","Lookup"],"not_rendered":{"defined_names":3},"read":"whole","date_system":"1900"}

{"sheet":"RAS","index":0,"n_rows":56,"n_cols":6,"rows_kept":56,"merged":[[4,0,4,2],[6,0,6,2],[10,0,10,2],[13,0,13,2],[15,0,15,2],[17,0,17,2],[20,0,20,2],[26,0,26,2],[34,0,34,2],[39,0,39,2],[40,1,40,2],[41,0,41,2],[44,0,44,2],[50,0,50,2]]}
["Care Home"]
["Name"]
[]
["RAS Tool Questions","RAS Tool Question Answer","Clinical Rationale","Minutes","DCC Review RAS Scoring","Difference to ECG"]
["Supporting the person in explaining their situation"]
["If the person has a sensory impairment, how does this affect their independence?\nIncluding hypersensitivity",null,null,{"$f":"_xlfn.XLOOKUP(_xlfn.CONCAT(A6,B6),Lookup!$F:$F,Lookup!$C:$C,0)","v":0},null,{"$f":"IFERROR(IF(_xlfn.XLOOKUP(_xlfn.CONCAT(A6,E6),Lookup!$F:$F,Lookup!$D:$D)-_xlfn.XLOOKUP(_xlfn.CONCAT(A6,B6),Lookup!$F:$F,Lookup!$D:$D)=0,\"Same\",IF(_xlfn.XLOOKUP(_xlfn.CONCAT(A6,E6),Lookup!$F:$F,Lookup!$D:$D)-_xlfn.XLOOKUP(_xlfn.CONCAT(A6,B6),Lookup!$F:$F,Lookup!$D:$D)>0,\"Higher\",\"Lower\")),\"\")","v":""}]
["Social relationships and community activities"]
["Attending appointments in the community - is the person independent?\nFor example, with their GP or at hospital, or to collect medication",null,null,{"$f":"_xlfn.XLOOKUP(_xlfn.CONCAT(A8,B8),Lookup!$F:$F,Lookup!$C:$C,0)","v":0},null,{"$f":"IFERROR(IF(_xlfn.XLOOKUP(_xlfn.CONCAT(A8,E8),Lookup!$F:$F,Lookup!$D:$D)-_xlfn.XLOOKUP(_xlfn.CONCAT(A8,B8),Lookup!$F:$F,Lookup!$D:$D)=0,\"Same\",IF(_xlfn.XLOOKUP(_xlfn.CONCAT(A8,E8),Lookup!$F:$F,Lookup!$D:$D)-_xlfn.XLOOKUP(_xlfn.CONCAT(A8,B8),Lookup!$F:$F,Lookup!$D:$D)>0,\"Higher\",\"Lower\")),\"\")","v":""}]
["Maintaining relationships and engaging in leisure, cultural or spiritual activities - level of independence:",null,null,{"$f":"_xlfn.XLOOKUP(_xlfn.CONCAT(A9,B9),Lookup!$F:$F,Lookup!$C:$C,0)","v":0},null,{"$f":"IFERROR(IF(_xlfn.XLOOKUP(_xlfn.CONCAT(A9,E9),Lookup!$F:$F,Lookup!$D:$D)-_xlfn.XLOOKUP(_xlfn.CONCAT(A9,B9),Lookup!$F:$F,Lookup!$D:$D)=0,\"Same\",IF(_xlfn.XLOOKUP(_xlfn.CONCAT(A9,E9),Lookup!$F:$F,Lookup!$D:$D)-_xlfn.XLOOKUP(_xlfn.CONCAT(A9,B9),Lookup!$F:$F,Lookup!$D:$D)>0,\"Higher\",\"Lower\")),\"\")","v":""}]
["Maintaining relationships and engaging in leisure, cultural or spiritual activities - what is the impact of social isolation on emotional wellbeing?",null,null,{"$f":"_xlfn.XLOOKUP(_xlfn.CONCAT(A10,B10),Lookup!$F:$F,Lookup!$C:$C,0)","v":0},null,{"$f":"IFERROR(IF(_xlfn.XLOOKUP(_xlfn.CONCAT(A10,E10),Lookup!$F:$F,Lookup!$D:$D)-_xlfn.XLOOKUP(_xlfn.CONCAT(A10,B10),Lookup!$F:$F,Lookup!$D:$D)=0,\"Same\",IF(_xlfn.XLOOKUP(_xlfn.CONCAT(A10,E10),Lookup!$F:$F,Lookup!$D:$D)-_xlfn.XLOOKUP(_xlfn.CONCAT(A10,B10),Lookup!$F:$F,Lookup!$D:$D)>0,\"Higher\",\"Lower\")),\"\")","v":""}]
["Work, training, education and volunteering"]
["Accessing and engaging in work, training, education or volunteering - level of independence:",null,null,{"$f":"_xlfn.XLOOKUP(_xlfn.CONCAT(A12,B12),Lookup!$F:$F,Lookup!$C:$C,0)","v":0},null,{"$f":"IFERROR(IF(_xlfn.XLOOKUP(_xlfn.CONCAT(A12,E12),Lookup!$F:$F,Lookup!$D:$D)-_xlfn.XLOOKUP(_xlfn.CONCAT(A12,B12),Lookup!$F:$F,Lookup!$D:$D)=0,\"Same\",IF(_xlfn.XLOOKUP(_xlfn.CONCAT(A12,E12),Lookup!$F:$F,Lookup!$D:$D)-_xlfn.XLOOKUP(_xlfn.CONCAT(A12,B12),Lookup!$F:$F,Lookup!$D:$D)>0,\"Higher\",\"Lower\")),\"\")","v":""}]
["Accessing and engaging in work, training, education or volunteering - how often support is needed?",null,null,{"$f":"_xlfn.XLOOKUP(_xlfn.CONCAT(A13,B13),Lookup!$F:$F,Lookup!$C:$C,0)","v":0},null,{"$f":"IFERROR(IF(_xlfn.XLOOKUP(_xlfn.CONCAT(A13,E13),Lookup!$F:$F,Lookup!$D:$D)-_xlfn.XLOOKUP(_xlfn.CONCAT(A13,B13),Lookup!$F:$F,Lookup!$D:$D)=0,\"Same\",IF(_xlfn.XLOOKUP(_xlfn.CONCAT(A13,E13),Lookup!$F:$F,Lookup!$D:$D)-_xlfn.XLOOKUP(_xlfn.CONCAT(A13,B13),Lookup!$F:$F,Lookup!$D:$D)>0,\"Higher\",\"Lower\")),\"\")","v":""}]
["Caring for others"]
["Carrying out caring responsibilities for a child - how often is support needed?",null,null,{"$f":"_xlfn.XLOOKUP(_xlfn.CONCAT(A15,B15),Lookup!$F:$F,Lookup!$C:$C,0)","v":0},null,{"$f":"IFERROR(IF(_xlfn.XLOOKUP(_xlfn.CONCAT(A15,E15),Lookup!$F:$F,Lookup!$D:$D)-_xlfn.XLOOKUP(_xlfn.CONCAT(A15,B15),Lookup!$F:$F,Lookup!$D:$D)=0,\"Same\",IF(_xlfn.XLOOKUP(_xlfn.CONCAT(A15,E15),Lookup!$F:$F,Lookup!$D:$D)-_xlfn.XLOOKUP(_xlfn.CONCAT(A15,B15),Lookup!$F:$F,Lookup!$D:$D)>0,\"Higher\",\"Lower\")),\"\")","v":""}]
["Home and living situation"]
["Maintaining and cleaning the home - level of independence:",null,null,{"$f":"_xlfn.XLOOKUP(_xlfn.CONCAT(A17,B17),Lookup!$F:$F,Lookup!$C:$C,0)","v":0},null,{"$f":"IFERROR(IF(_xlfn.XLOOKUP(_xlfn.CONCAT(A17,E17),Lookup!$F:$F,Lookup!$D:$D)-_xlfn.XLOOKUP(_xlfn.CONCAT(A17,B17),Lookup!$F:$F,Lookup!$D:$D)=0,\"Same\",IF(_xlfn.XLOOKUP(_xlfn.CONCAT(A17,E17),Lookup!$F:$F,Lookup!$D:$D)-_xlfn.XLOOKUP(_xlfn.CONCAT(A17,B17),Lookup!$F:$F,Lookup!$D:$D)>0,\"Higher\",\"Lower\")),\"\")","v":""}]
["Managing paperwork and finances"]
["Managing day to day paperwork - is the person independent?",null,null,{"$f":"_xlfn.XLOOKUP(_xlfn.CONCAT(A19,B19),Lookup!$F:$F,Lookup!$C:$C,0)","v":0},null,{"$f":"IFERROR(IF(_xlfn.XLOOKUP(_xlfn.CONCAT(A19,E19),Lookup!$F:$F,Lookup!$D:$D)-_xlfn.XLOOKUP(_xlfn.CONCAT(A19,B19),Lookup!$F:$F,Lookup!$D:$D)=0,\"Same\",IF(_xlfn.XLOOKUP(_xlfn.CONCAT(A19,E19),Lookup!$F:$F,Lookup!$D:$D)-_xlfn.XLOOKUP(_xlfn.CONCAT(A19,B19),Lookup!$F:$F,Lookup!$D:$D)>0,\"Higher\",\"Lower\")),\"\")","v":""}]
["Managing finance - is the person independent?",null,null,{"$f":"_xlfn.XLOOKUP(_xlfn.CONCAT(A20,B20),Lookup!$F:$F,Lookup!$C:$C,0)","v":0},null,{"$f":"IFERROR(IF(_xlfn.XLOOKUP(_xlfn.CONCAT(A20,E20),Lookup!$F:$F,Lookup!$D:$D)-_xlfn.XLOOKUP(_xlfn.CONCAT(A20,B20),Lookup!$F:$F,Lookup!$D:$D)=0,\"Same\",IF(_xlfn.XLOOKUP(_xlfn.CONCAT(A20,E20),Lookup!$F:$F,Lookup!$D:$D)-_xlfn.XLOOKUP(_xlfn.CONCAT(A20,B20),Lookup!$F:$F,Lookup!$D:$D)>0,\"Higher\",\"Lower\")),\"\")","v":""}]
["Eating healthily and safely"]
["Shopping for food and essentials - is the person independent?",null,null,{"$f":"_xlfn.XLOOKUP(_xlfn.CONCAT(A22,B22),Lookup!$F:$F,Lookup!$C:$C,0)","v":0},null,{"$f":"IFERROR(IF(_xlfn.XLOOKUP(_xlfn.CONCAT(A22,E22),Lookup!$F:$F,Lookup!$D:$D)-_xlfn.XLOOKUP(_xlfn.CONCAT(A22,B22),Lookup!$F:$F,Lookup!$D:$D)=0,\"Same\",IF(_xlfn.XLOOKUP(_xlfn.CONCAT(A22,E22),Lookup!$F:$F,Lookup!$D:$D)-_xlfn.XLOOKUP(_xlfn.CONCAT(A22,B22),Lookup!$F:$F,Lookup!$D:$D)>0,\"Higher\",\"Lower\")),\"\")","v":""}]
["Preparing meals, snacks and drinks – is the person independent?",null,null,{"$f":"_xlfn.XLOOKUP(_xlfn.CONCAT(A23,B23),Lookup!$F:$F,Lookup!$C:$C,0)","v":0},null,{"$f":"IFERROR(IF(_xlfn.XLOOKUP(_xlfn.CONCAT(A23,E23),Lookup!$F:$F,Lookup!$D:$D)-_xlfn.XLOOKUP(_xlfn.CONCAT(A23,B23),Lookup!$F:$F,Lookup!$D:$D)=0,\"Same\",IF(_xlfn.XLOOKUP(_xlfn.CONCAT(A23,E23),Lookup!$F:$F,Lookup!$D:$D)-_xlfn.XLOOKUP(_xlfn.CONCAT(A23,B23),Lookup!$F:$F,Lookup!$D:$D)>0,\"Higher\",\"Lower\")),\"\")","v":""}]
["Preparing meals, snack and drinks – how often is support needed?",null,null,{"$f":"_xlfn.XLOOKUP(_xlfn.CONCAT(A24,B24),Lookup!$F:$F,Lookup!$C:$C,0)","v":0},null,{"$f":"IFERROR(IF(_xlfn.XLOOKUP(_xlfn.CONCAT(A24,E24),Lookup!$F:$F,Lookup!$D:$D)-_xlfn.XLOOKUP(_xlfn.CONCAT(A24,B24),Lookup!$F:$F,Lookup!$D:$D)=0,\"Same\",IF(_xlfn.XLOOKUP(_xlfn.CONCAT(A24,E24),Lookup!$F:$F,Lookup!$D:$D)-_xlfn.XLOOKUP(_xlfn.CONCAT(A24,B24),Lookup!$F:$F,Lookup!$D:$D)>0,\"Higher\",\"Lower\")),\"\")","v":""}]
["Eating and drinking – is the person independent?",null,null,{"$f":"_xlfn.XLOOKUP(_xlfn.CONCAT(A25,B25),Lookup!$F:$F,Lookup!$C:$C,0)","v":0},null,{"$f":"IFERROR(IF(_xlfn.XLOOKUP(_xlfn.CONCAT(A25,E25),Lookup!$F:$F,Lookup!$D:$D)-_xlfn.XLOOKUP(_xlfn.CONCAT(A25,B25),Lookup!$F:$F,Lookup!$D:$D)=0,\"Same\",IF(_xlfn.XLOOKUP(_xlfn.CONCAT(A25,E25),Lookup!$F:$F,Lookup!$D:$D)-_xlfn.XLOOKUP(_xlfn.CONCAT(A25,B25),Lookup!$F:$F,Lookup!$D:$D)>0,\"Higher\",\"Lower\")),\"\")","v":""}]
["If someone needs to support the person being fed, how long does the support for this usually take?",null,null,{"$f":"_xlfn.XLOOKUP(_xlfn.CONCAT(A26,B26),Lookup!$F:$F,Lookup!$C:$C,0)","v":0},null,{"$f":"IFERROR(IF(_xlfn.XLOOKUP(_xlfn.CONCAT(A26,E26),Lookup!$F:$F,Lookup!$D:$D)-_xlfn.XLOOKUP(_xlfn.CONCAT(A26,B26),Lookup!$F:$F,Lookup!$D:$D)=0,\"Same\",IF(_xlfn.XLOOKUP(_xlfn.CONCAT(A26,E26),Lookup!$F:$F,Lookup!$D:$D)-_xlfn.XLOOKUP(_xlfn.CONCAT(A26,B26),Lookup!$F:$F,Lookup!$D:$D)>0,\"Higher\",\"Lower\")),\"\")","v":""}]
["Personal Care"]
["Getting dressed for the day and choosing appropriate clothes to wear – is the person independent?",null,null,{"$f":"_xlfn.XLOOKUP(_xlfn.CONCAT(A28,B28),Lookup!$F:$F,Lookup!$C:$C,0)","v":0},null,{"$f":"IFERROR(IF(_xlfn.XLOOKUP(_xlfn.CONCAT(A28,E28),Lookup!$F:$F,Lookup!$D:$D)-_xlfn.XLOOKUP(_xlfn.CONCAT(A28,B28),Lookup!$F:$F,Lookup!$D:$D)=0,\"Same\",IF(_xlfn.XLOOKUP(_xlfn.CONCAT(A28,E28),Lookup!$F:$F,Lookup!$D:$D)-_xlfn.XLOOKUP(_xlfn.CONCAT(A28,B28),Lookup!$F:$F,Lookup!$D:$D)>0,\"Higher\",\"Lower\")),\"\")","v":""}]
["Getting undressed at the end of the day – is the person independent?",null,null,{"$f":"_xlfn.XLOOKUP(_xlfn.CONCAT(A29,B29),Lookup!$F:$F,Lookup!$C:$C,0)","v":0},null,{"$f":"IFERROR(IF(_xlfn.XLOOKUP(_xlfn.CONCAT(A29,E29),Lookup!$F:$F,Lookup!$D:$D)-_xlfn.XLOOKUP(_xlfn.CONCAT(A29,B29),Lookup!$F:$F,Lookup!$D:$D)=0,\"Same\",IF(_xlfn.XLOOKUP(_xlfn.CONCAT(A29,E29),Lookup!$F:$F,Lookup!$D:$D)-_xlfn.XLOOKUP(_xlfn.CONCAT(A29,B29),Lookup!$F:$F,Lookup!$D:$D)>0,\"Higher\",\"Lower\")),\"\")","v":""}]
["Managing person appearance – is the person independent?\nThis includes washing hands and face, brushing hair and nails, and shaving",null,null,{"$f":"_xlfn.XLOOKUP(_xlfn.CONCAT(A30,B30),Lookup!$F:$F,Lookup!$C:$C,0)","v":0},null,{"$f":"IFERROR(IF(_xlfn.XLOOKUP(_xlfn.CONCAT(A30,E30),Lookup!$F:$F,Lookup!$D:$D)-_xlfn.XLOOKUP(_xlfn.CONCAT(A30,B30),Lookup!$F:$F,Lookup!$D:$D)=0,\"Same\",IF(_xlfn.XLOOKUP(_xlfn.CONCAT(A30,E30),Lookup!$F:$F,Lookup!$D:$D)-_xlfn.XLOOKUP(_xlfn.CONCAT(A30,B30),Lookup!$F:$F,Lookup!$D:$D)>0,\"Higher\",\"Lower\")),\"\")","v":""}]
["Washing whole body – is the person independent?\nThis includes taking a bath or shower, washing hair or having a strip wash",null,null,{"$f":"_xlfn.XLOOKUP(_xlfn.CONCAT(A31,B31),Lookup!$F:$F,Lookup!$C:$C,0)","v":0},null,{"$f":"IFERROR(IF(_xlfn.XLOOKUP(_xlfn.CONCAT(A31,E31),Lookup!$F:$F,Lookup!$D:$D)-_xlfn.XLOOKUP(_xlfn.CONCAT(A31,B31),Lookup!$F:$F,Lookup!$D:$D)=0,\"Same\",IF(_xlfn.XLOOKUP(_xlfn.CONCAT(A31,E31),Lookup!$F:$F,Lookup!$D:$D)-_xlfn.XLOOKUP(_xlfn.CONCAT(A31,B31),Lookup!$F:$F,Lookup!$D:$D)>0,\"Higher\",\"Lower\")),\"\")","v":""}]
["Washing whole body – how often is support needed?",null,null,{"$f":"_xlfn.XLOOKUP(_xlfn.CONCAT(A32,B32),Lookup!$F:$F,Lookup!$C:$C,0)","v":0},null,{"$f":"IFERROR(IF(_xlfn.XLOOKUP(_xlfn.CONCAT(A32,E32),Lookup!$F:$F,Lookup!$D:$D)-_xlfn.XLOOKUP(_xlfn.CONCAT(A32,B32),Lookup!$F:$F,Lookup!$D:$D)=0,\"Same\",IF(_xlfn.XLOOKUP(_xlfn.CONCAT(A32,E32),Lookup!$F:$F,Lookup!$D:$D)-_xlfn.XLOOKUP(_xlfn.CONCAT(A32,B32),Lookup!$F:$F,Lookup!$D:$D)>0,\"Higher\",\"Lower\")),\"\")","v":""}]
["Using the toilet and managing continence – is the person independent?",null,null,{"$f":"_xlfn.XLOOKUP(_xlfn.CONCAT(A33,B33),Lookup!$F:$F,Lookup!$C:$C,0)","v":0},null,{"$f":"IFERROR(IF(_xlfn.XLOOKUP(_xlfn.CONCAT(A33,E33),Lookup!$F:$F,Lookup!$D:$D)-_xlfn.XLOOKUP(_xlfn.CONCAT(A33,B33),Lookup!$F:$F,Lookup!$D:$D)=0,\"Same\",IF(_xlfn.XLOOKUP(_xlfn.CONCAT(A33,E33),Lookup!$F:$F,Lookup!$D:$D)-_xlfn.XLOOKUP(_xlfn.CONCAT(A33,B33),Lookup!$F:$F,Lookup!$D:$D)>0,\"Higher\",\"Lower\")),\"\")","v":""}]
["Using the toilet and managing continence – how often is support needed?",null,null,{"$f":"_xlfn.XLOOKUP(_xlfn.CONCAT(A34,B34),Lookup!$F:$F,Lookup!$C:$C,0)","v":0},null,{"$f":"IFERROR(IF(_xlfn.XLOOKUP(_xlfn.CONCAT(A34,E34),Lookup!$F:$F,Lookup!$D:$D)-_xlfn.XLOOKUP(_xlfn.CONCAT(A34,B34),Lookup!$F:$F,Lookup!$D:$D)=0,\"Same\",IF(_xlfn.XLOOKUP(_xlfn.CONCAT(A34,E34),Lookup!$F:$F,Lookup!$D:$D)-_xlfn.XLOOKUP(_xlfn.CONCAT(A34,B34),Lookup!$F:$F,Lookup!$D:$D)>0,\"Higher\",\"Lower\")),\"\")","v":""}]
["Moving around the home"]
["Managing transfers – is the person independent?\nThis might include between places such as bed, chair and toilet",null,null,{"$f":"_xlfn.XLOOKUP(_xlfn.CONCAT(A36,B36),Lookup!$F:$F,Lookup!$C:$C,0)","v":0},null,{"$f":"IFERROR(IF(_xlfn.XLOOKUP(_xlfn.CONCAT(A36,E36),Lookup!$F:$F,Lookup!$D:$D)-_xlfn.XLOOKUP(_xlfn.CONCAT(A36,B36),Lookup!$F:$F,Lookup!$D:$D)=0,\"Same\",IF(_xlfn.XLOOKUP(_xlfn.CONCAT(A36,E36),Lookup!$F:$F,Lookup!$D:$D)-_xlfn.XLOOKUP(_xlfn.CONCAT(A36,B36),Lookup!$F:$F,Lookup!$D:$D)>0,\"Higher\",\"Lower\")),\"\")","v":""}]
["Can the person bear their own weight or assisted by someone to help them transfer?",null,null,{"$f":"_xlfn.XLOOKUP(_xlfn.CONCAT(A37,B37),Lookup!$F:$F,Lookup!$C:$C,0)","v":0},null,{"$f":"IFERROR(IF(_xlfn.XLOOKUP(_xlfn.CONCAT(A37,E37),Lookup!$F:$F,Lookup!$D:$D)-_xlfn.XLOOKUP(_xlfn.CONCAT(A37,B37),Lookup!$F:$F,Lookup!$D:$D)=0,\"Same\",IF(_xlfn.XLOOKUP(_xlfn.CONCAT(A37,E37),Lookup!$F:$F,Lookup!$D:$D)-_xlfn.XLOOKUP(_xlfn.CONCAT(A37,B37),Lookup!$F:$F,Lookup!$D:$D)>0,\"Higher\",\"Lower\")),\"\")","v":""}]
["To what extent does the person’s weight, frame, balance or strength affect their mobility?\nFor example, if they are overweight, underweight or frail",null,null,{"$f":"_xlfn.XLOOKUP(_xlfn.CONCAT(A38,B38),Lookup!$F:$F,Lookup!$C:$C,0)","v":0},null,{"$f":"IFERROR(IF(_xlfn.XLOOKUP(_xlfn.CONCAT(A38,E38),Lookup!$F:$F,Lookup!$D:$D)-_xlfn.XLOOKUP(_xlfn.CONCAT(A38,B38),Lookup!$F:$F,Lookup!$D:$D)=0,\"Same\",IF(_xlfn.XLOOKUP(_xlfn.CONCAT(A38,E38),Lookup!$F:$F,Lookup!$D:$D)-_xlfn.XLOOKUP(_xlfn.CONCAT(A38,B38),Lookup!$F:$F,Lookup!$D:$D)>0,\"Higher\",\"Lower\")),\"\")","v":""}]
["Staying comfortable and repositioning – is the person independent?",null,null,{"$f":"_xlfn.XLOOKUP(_xlfn.CONCAT(A39,B39),Lookup!$F:$F,Lookup!$C:$C,0)","v":0},null,{"$f":"IFERROR(IF(_xlfn.XLOOKUP(_xlfn.CONCAT(A39,E39),Lookup!$F:$F,Lookup!$D:$D)-_xlfn.XLOOKUP(_xlfn.CONCAT(A39,B39),Lookup!$F:$F,Lookup!$D:$D)=0,\"Same\",IF(_xlfn.XLOOKUP(_xlfn.CONCAT(A39,E39),Lookup!$F:$F,Lookup!$D:$D)-_xlfn.XLOOKUP(_xlfn.CONCAT(A39,B39),Lookup!$F:$F,Lookup!$D:$D)>0,\"Higher\",\"Lower\")),\"\")","v":""}]
["Heath conditions and disabilities that affect the person’s well-being"]
["Mark up to two disabilities, impairments or conditions that have a significant effect on well-being:"]
["Medication"]
["Taking or applying medication – is the person independent?",null,null,{"$f":"_xlfn.XLOOKUP(_xlfn.CONCAT(A43,B43),Lookup!$F:$F,Lookup!$C:$C,0)","v":0},null,{"$f":"IFERROR(IF(_xlfn.XLOOKUP(_xlfn.CONCAT(A43,E43),Lookup!$F:$F,Lookup!$D:$D)-_xlfn.XLOOKUP(_xlfn.CONCAT(A43,B43),Lookup!$F:$F,Lookup!$D:$D)=0,\"Same\",IF(_xlfn.XLOOKUP(_xlfn.CONCAT(A43,E43),Lookup!$F:$F,Lookup!$D:$D)-_xlfn.XLOOKUP(_xlfn.CONCAT(A43,B43),Lookup!$F:$F,Lookup!$D:$D)>0,\"Higher\",\"Lower\")),\"\")","v":""}]
["Taking or applying medication – how often is support needed?",null,null,{"$f":"_xlfn.XLOOKUP(_xlfn.CONCAT(A44,B44),Lookup!$F:$F,Lookup!$C:$C,0)","v":0},null,{"$f":"IFERROR(IF(_xlfn.XLOOKUP(_xlfn.CONCAT(A44,E44),Lookup!$F:$F,Lookup!$D:$D)-_xlfn.XLOOKUP(_xlfn.CONCAT(A44,B44),Lookup!$F:$F,Lookup!$D:$D)=0,\"Same\",IF(_xlfn.XLOOKUP(_xlfn.CONCAT(A44,E44),Lookup!$F:$F,Lookup!$D:$D)-_xlfn.XLOOKUP(_xlfn.CONCAT(A44,B44),Lookup!$F:$F,Lookup!$D:$D)>0,\"Higher\",\"Lower\")),\"\")","v":""}]
["Mental well-being"]
["How much difficulty does the person have with remembering people or things or finding their way around?",null,null,{"$f":"_xlfn.XLOOKUP(_xlfn.CONCAT(A46,B46),Lookup!$F:$F,Lookup!$C:$C,0)","v":0},null,{"$f":"IFERROR(IF(_xlfn.XLOOKUP(_xlfn.CONCAT(A46,E46),Lookup!$F:$F,Lookup!$D:$D)-_xlfn.XLOOKUP(_xlfn.CONCAT(A46,B46),Lookup!$F:$F,Lookup!$D:$D)=0,\"Same\",IF(_xlfn.XLOOKUP(_xlfn.CONCAT(A46,E46),Lookup!$F:$F,Lookup!$D:$D)-_xlfn.XLOOKUP(_xlfn.CONCAT(A46,B46),Lookup!$F:$F,Lookup!$D:$D)>0,\"Higher\",\"Lower\")),\"\")","v":""}]
["Can the person plan and make decisions about their daily life?",null,null,{"$f":"_xlfn.XLOOKUP(_xlfn.CONCAT(A47,B47),Lookup!$F:$F,Lookup!$C:$C,0)","v":0},null,{"$f":"IFERROR(IF(_xlfn.XLOOKUP(_xlfn.CONCAT(A47,E47),Lookup!$F:$F,Lookup!$D:$D)-_xlfn.XLOOKUP(_xlfn.CONCAT(A47,B47),Lookup!$F:$F,Lookup!$D:$D)=0,\"Same\",IF(_xlfn.XLOOKUP(_xlfn.CONCAT(A47,E47),Lookup!$F:$F,Lookup!$D:$D)-_xlfn.XLOOKUP(_xlfn.CONCAT(A47,B47),Lookup!$F:$F,Lookup!$D:$D)>0,\"Higher\",\"Lower\")),\"\")","v":""}]
["How is the person’s day-to-day emotional well-being?",null,null,{"$f":"_xlfn.XLOOKUP(_xlfn.CONCAT(A48,B48),Lookup!$F:$F,Lookup!$C:$C,0)","v":0},null,{"$f":"IFERROR(IF(_xlfn.XLOOKUP(_xlfn.CONCAT(A48,E48),Lookup!$F:$F,Lookup!$D:$D)-_xlfn.XLOOKUP(_xlfn.CONCAT(A48,B48),Lookup!$F:$F,Lookup!$D:$D)=0,\"Same\",IF(_xlfn.XLOOKUP(_xlfn.CONCAT(A48,E48),Lookup!$F:$F,Lookup!$D:$D)-_xlfn.XLOOKUP(_xlfn.CONCAT(A48,B48),Lookup!$F:$F,Lookup!$D:$D)>0,\"Higher\",\"Lower\")),\"\")","v":""}]
["Does the person’s behaviour ever worry or upset them or cause concerns to others?",null,null,{"$f":"_xlfn.XLOOKUP(_xlfn.CONCAT(A49,B49),Lookup!$F:$F,Lookup!$C:$C,0)","v":0},null,{"$f":"IFERROR(IF(_xlfn.XLOOKUP(_xlfn.CONCAT(A49,E49),Lookup!$F:$F,Lookup!$D:$D)-_xlfn.XLOOKUP(_xlfn.CONCAT(A49,B49),Lookup!$F:$F,Lookup!$D:$D)=0,\"Same\",IF(_xlfn.XLOOKUP(_xlfn.CONCAT(A49,E49),Lookup!$F:$F,Lookup!$D:$D)-_xlfn.XLOOKUP(_xlfn.CONCAT(A49,B49),Lookup!$F:$F,Lookup!$D:$D)>0,\"Higher\",\"Lower\")),\"\")","v":""}]
["Does the person find it challenging to engage with others who are offering support?\nThis could be due to difficulties with their thinking, emotional well-being or behaviour",null,null,{"$f":"_xlfn.XLOOKUP(_xlfn.CONCAT(A50,B50),Lookup!$F:$F,Lookup!$C:$C,0)","v":0},null,{"$f":"IFERROR(IF(_xlfn.XLOOKUP(_xlfn.CONCAT(A50,E50),Lookup!$F:$F,Lookup!$D:$D)-_xlfn.XLOOKUP(_xlfn.CONCAT(A50,B50),Lookup!$F:$F,Lookup!$D:$D)=0,\"Same\",IF(_xlfn.XLOOKUP(_xlfn.CONCAT(A50,E50),Lookup!$F:$F,Lookup!$D:$D)-_xlfn.XLOOKUP(_xlfn.CONCAT(A50,B50),Lookup!$F:$F,Lookup!$D:$D)>0,\"Higher\",\"Lower\")),\"\")","v":""}]
["Staying safe at home"]
["Staying safe during the day – is the person independent?",null,null,{"$f":"_xlfn.XLOOKUP(_xlfn.CONCAT(A52,B52),Lookup!$F:$F,Lookup!$C:$C,0)","v":0},null,{"$f":"IFERROR(IF(_xlfn.XLOOKUP(_xlfn.CONCAT(A52,E52),Lookup!$F:$F,Lookup!$D:$D)-_xlfn.XLOOKUP(_xlfn.CONCAT(A52,B52),Lookup!$F:$F,Lookup!$D:$D)=0,\"Same\",IF(_xlfn.XLOOKUP(_xlfn.CONCAT(A52,E52),Lookup!$F:$F,Lookup!$D:$D)-_xlfn.XLOOKUP(_xlfn.CONCAT(A52,B52),Lookup!$F:$F,Lookup!$D:$D)>0,\"Higher\",\"Lower\")),\"\")","v":""}]
["Staying safe during the night – is the person independent?",null,null,{"$f":"_xlfn.XLOOKUP(_xlfn.CONCAT(A53,B53),Lookup!$F:$F,Lookup!$C:$C,0)","v":0},null,{"$f":"IFERROR(IF(_xlfn.XLOOKUP(_xlfn.CONCAT(A53,E53),Lookup!$F:$F,Lookup!$D:$D)-_xlfn.XLOOKUP(_xlfn.CONCAT(A53,B53),Lookup!$F:$F,Lookup!$D:$D)=0,\"Same\",IF(_xlfn.XLOOKUP(_xlfn.CONCAT(A53,E53),Lookup!$F:$F,Lookup!$D:$D)-_xlfn.XLOOKUP(_xlfn.CONCAT(A53,B53),Lookup!$F:$F,Lookup!$D:$D)>0,\"Higher\",\"Lower\")),\"\")","v":""}]
["Staying safe during the day or night - how often is support needed?",null,null,{"$f":"_xlfn.XLOOKUP(_xlfn.CONCAT(A54,B54),Lookup!$F:$F,Lookup!$C:$C,0)","v":0},null,{"$f":"IFERROR(IF(_xlfn.XLOOKUP(_xlfn.CONCAT(A54,E54),Lookup!$F:$F,Lookup!$D:$D)-_xlfn.XLOOKUP(_xlfn.CONCAT(A54,B54),Lookup!$F:$F,Lookup!$D:$D)=0,\"Same\",IF(_xlfn.XLOOKUP(_xlfn.CONCAT(A54,E54),Lookup!$F:$F,Lookup!$D:$D)-_xlfn.XLOOKUP(_xlfn.CONCAT(A54,B54),Lookup!$F:$F,Lookup!$D:$D)>0,\"Higher\",\"Lower\")),\"\")","v":""}]
[]
[null,null,"Total Care Hours per week",{"$f":"SUM(D5:D54)/60*7","v":{"v":0,"d":"0.00"}}]

{"sheet":"Lookup","index":1,"n_rows":198,"n_cols":6,"rows_kept":198,"hidden":true,"merged":[[2,0,7,0],[9,0,10,0],[11,0,16,0],[17,0,21,0],[23,0,29,0],[30,0,35,0],[37,0,42,0],[44,0,48,0],[50,0,51,0],[52,0,53,0],[55,0,59,0],[60,0,64,0],[65,0,71,0],[72,0,76,0],[77,0,79,0],[81,0,85,0],[86,0,90,0],[91,0,95,0],[96,0,100,0],[101,0,109,0],[110,0,114,0],[115,0,121,0],[123,0,127,0],[128,0,129,0],[130,0,132,0],[133,0,137,0],[139,0,143,0],[144,0,150,0],[152,0,156,0],[157,0,161,0],[162,0,166,0],[167,0,171,0],[172,0,176,0],[178,0,184,0],[185,0,191,0],[192,0,197,0]]}
["Section","Answers","Minutes","Ranking","Question","ID"]
["Supporting the person in explaining their situation",{"$nulls":3},{"$f":"IF(A2=\"\",E1,A2)","v":"Supporting the person in explaining their situation"},{"$f":"_xlfn.CONCAT(E2,B2)","v":"Supporting the person in explaining their situation"}]
["If the person has a sensory impairment, how does this affect their independence?\nIncluding hypersensitivity","Does not apply",0,{"$f":"COUNTIF($E$3:$E3,$E3)","v":1},{"$f":"IF(A3=\"\",E2,A3)","v":"If the person has a sensory impairment, how does this affect their independence?\nIncluding hypersensitivity"},"If the person has a sensory impairment, how does this affect their independence?\nIncluding hypersensitivityDoes not apply"]
[null,"Largely unaffected by impairment",0,{"$f":"COUNTIF($E$3:$E4,$E4)","v":2},"If the person has a sensory impairment, how does this affect their independence?\nIncluding hypersensitivity","If the person has a sensory impairment, how does this affect their independence?\nIncluding hypersensitivityLargely unaffected by impairment"]
[null,"Impairment causes mild restrictions",0,{"$f":"COUNTIF($E$3:$E5,$E5)","v":3},"If the person has a sensory impairment, how does this affect their independence?\nIncluding hypersensitivity","If the person has a sensory impairment, how does this affect their independence?\nIncluding hypersensitivityImpairment causes mild restrictions"]
[null,"Impairment causes significant restrictions",0,{"$f":"COUNTIF($E$3:$E6,$E6)","v":4},"If the person has a sensory impairment, how does this affect their independence?\nIncluding hypersensitivity","If the person has a sensory impairment, how does this affect their independence?\nIncluding hypersensitivityImpairment causes significant restrictions"]
[null,"Impairment causes major restrictions",0,{"$f":"COUNTIF($E$3:$E7,$E7)","v":5},"If the person has a sensory impairment, how does this affect their independence?\nIncluding hypersensitivity","If the person has a sensory impairment, how does this affect their independence?\nIncluding hypersensitivityImpairment causes major restrictions"]
[null,"Impairment severly limits life",0,{"$f":"COUNTIF($E$3:$E8,$E8)","v":6},"If the person has a sensory impairment, how does this affect their independence?\nIncluding hypersensitivity","If the person has a sensory impairment, how does this affect their independence?\nIncluding hypersensitivityImpairment severly limits life"]
["Social relationships and community activities",null,null,{"$f":"COUNTIF($E$3:$E9,$E9)","v":1},"Social relationships and community activities","Social relationships and community activities"]
["Attending appointments in the community - is the person independent?\nFor example, with their GP or at hospital, or to collect medication","Yes",0,{"$f":"COUNTIF($E$3:$E10,$E10)","v":1},"Attending appointments in the community - is the person independent?\nFor example, with their GP or at hospital, or to collect medication","Attending appointments in the community - is the person independent?\nFor example, with their GP or at hospital, or to collect medicationYes"]
[null,"No",0,{"$f":"COUNTIF($E$3:$E11,$E11)","v":2},"Attending appointments in the community - is the person independent?\nFor example, with their GP or at hospital, or to collect medication","Attending appointments in the community - is the person independent?\nFor example, with their GP or at hospital, or to collect medicationNo"]
["Maintaining relationships and engaging in leisure, cultural or spiritual activities - level of independence:","Manages independently",0,{"$f":"COUNTIF($E$3:$E12,$E12)","v":1},"Maintaining relationships and engaging in leisure, cultural or spiritual activities - level of independence:","Maintaining relationships and engaging in leisure, cultural or spiritual activities - level of independence:Manages independently"]
[null,"Manages with support to get there independently",0,{"$f":"COUNTIF($E$3:$E13,$E13)","v":2},"Maintaining relationships and engaging in leisure, cultural or spiritual activities - level of independence:","Maintaining relationships and engaging in leisure, cultural or spiritual activities - level of independence:Manages with support to get there independently"]
[null,"Manages if supported as part of a group",0,{"$f":"COUNTIF($E$3:$E14,$E14)","v":3},"Maintaining relationships and engaging in leisure, cultural or spiritual activities - level of independence:","Maintaining relationships and engaging in leisure, cultural or spiritual activities - level of independence:Manages if supported as part of a group"]
[null,"Manages with one-to-one support",0,{"$f":"COUNTIF($E$3:$E15,$E15)","v":4},"Maintaining relationships and engaging in leisure, cultural or spiritual activities - level of independence:","Maintaining relationships and engaging in leisure, cultural or spiritual activities - level of independence:Manages with one-to-one support"]
[null,"Manages with two-to-one support (or more)",0,{"$f":"COUNTIF($E$3:$E16,$E16)","v":5},"Maintaining relationships and engaging in leisure, cultural or spiritual activities - level of independence:","Maintaining relationships and engaging in leisure, cultural or spiritual activities - level of independence:Manages with two-to-one support (or more)"]
[null,"Person needs' means it is not possible",0,{"$f":"COUNTIF($E$3:$E17,$E17)","v":6},"Maintaining relationships and engaging in leisure, cultural or spiritual activities - level of independence:","Maintaining relationships and engaging in leisure, cultural or spiritual activities - level of independence:Person needs' means it is not possible"]
["Maintaining relationships and engaging in leisure, cultural or spiritual activities - what is the impact of social isolation on emotional wellbeing?","No impact or risk",0,{"$f":"COUNTIF($E$3:$E18,$E18)","v":1},"Maintaining relationships and engaging in leisure, cultural or spiritual activities - what is the impact of social isolation on emotional wellbeing?","Maintaining relationships and engaging in leisure, cultural or spiritual activities - what is the impact of social isolation on emotional wellbeing?No impact or risk"]
[null,"Low impact or risk",0,{"$f":"COUNTIF($E$3:$E19,$E19)","v":2},"Maintaining relationships and engaging in leisure, cultural or spiritual activities - what is the impact of social isolation on emotional wellbeing?","Maintaining relationships and engaging in leisure, cultural or spiritual activities - what is the impact of social isolation on emotional wellbeing?Low impact or risk"]
[null,"Moderate impact or risk",0,{"$f":"COUNTIF($E$3:$E20,$E20)","v":3},"Maintaining relationships and engaging in leisure, cultural or spiritual activities - what is the impact of social isolation on emotional wellbeing?","Maintaining relationships and engaging in leisure, cultural or spiritual activities - what is the impact of social isolation on emotional wellbeing?Moderate impact or risk"]
[null,"High impact or risk",0,{"$f":"COUNTIF($E$3:$E21,$E21)","v":4},"Maintaining relationships and engaging in leisure, cultural or spiritual activities - what is the impact of social isolation on emotional wellbeing?","Maintaining relationships and engaging in leisure, cultural or spiritual activities - what is the impact of social isolation on emotional wellbeing?High impact or risk"]
[null,"Very high impact or risk",0,{"$f":"COUNTIF($E$3:$E22,$E22)","v":5},"Maintaining relationships and engaging in leisure, cultural or spiritual activities - what is the impact of social isolation on emotional wellbeing?","Maintaining relationships and engaging in leisure, cultural or spiritual activities - what is the impact of social isolation on emotional wellbeing?Very high impact or risk"]
["Work, training, education and volunteering",null,null,{"$f":"COUNTIF($E$3:$E23,$E23)","v":1},"Work, training, education and volunteering","Work, training, education and volunteering"]
["Accessing and engaging in work, training, education or volunteering - level of independence:","Manages independently",0,{"$f":"COUNTIF($E$3:$E24,$E24)","v":1},"Accessing and engaging in work, training, education or volunteering - level of independence:","Accessing and engaging in work, training, education or volunteering - level of independence:Manages independently"]
[null,"Manages with support to travel only",0,{"$f":"COUNTIF($E$3:$E25,$E25)","v":2},"Accessing and engaging in work, training, education or volunteering - level of independence:","Accessing and engaging in work, training, education or volunteering - level of independence:Manages with support to travel only"]
[null,"Manages if supported as part of a group",0,{"$f":"COUNTIF($E$3:$E26,$E26)","v":3},"Accessing and engaging in work, training, education or volunteering - level of independence:","Accessing and engaging in work, training, education or volunteering - level of independence:Manages if supported as part of a group"]
[null,"Manages with one-to-one support",0,{"$f":"COUNTIF($E$3:$E27,$E27)","v":4},"Accessing and engaging in work, training, education or volunteering - level of independence:","Accessing and engaging in work, training, education or volunteering - level of independence:Manages with one-to-one support"]
[null,"Manages with two-to-one support (or more)",0,{"$f":"COUNTIF($E$3:$E28,$E28)","v":5},"Accessing and engaging in work, training, education or volunteering - level of independence:","Accessing and engaging in work, training, education or volunteering - level of independence:Manages with two-to-one support (or more)"]
[null,"Prefers not to participate",0,{"$f":"COUNTIF($E$3:$E29,$E29)","v":6},"Accessing and engaging in work, training, education or volunteering - level of independence:","Accessing and engaging in work, training, education or volunteering - level of independence:Prefers not to participate"]
[null,"Person needs' means it is not possible",0,{"$f":"COUNTIF($E$3:$E30,$E30)","v":7},"Accessing and engaging in work, training, education or volunteering - level of independence:","Accessing and engaging in work, training, education or volunteering - level of independence:Person needs' means it is not possible"]
["Accessing and engaging in work, training, education or volunteering - how often support is needed?","None",0,{"$f":"COUNTIF($E$3:$E31,$E31)","v":1},"Accessing and engaging in work, training, education or volunteering - how often support is needed?","Accessing and engaging in work, training, education or volunteering - how often support is needed?None"]
[null,"Less than once a week",0,{"$f":"COUNTIF($E$3:$E32,$E32)","v":2},"Accessing and engaging in work, training, education or volunteering - how often support is needed?","Accessing and engaging in work, training, education or volunteering - how often support is needed?Less than once a week"]
[null,"Once a week",0,{"$f":"COUNTIF($E$3:$E33,$E33)","v":3},"Accessing and engaging in work, training, education or volunteering - how often support is needed?","Accessing and engaging in work, training, education or volunteering - how often support is needed?Once a week"]
[null,"Two or three times a week",0,{"$f":"COUNTIF($E$3:$E34,$E34)","v":4},"Accessing and engaging in work, training, education or volunteering - how often support is needed?","Accessing and engaging in work, training, education or volunteering - how often support is needed?Two or three times a week"]
[null,"Four or five times a week",0,{"$f":"COUNTIF($E$3:$E35,$E35)","v":5},"Accessing and engaging in work, training, education or volunteering - how often support is needed?","Accessing and engaging in work, training, education or volunteering - how often support is needed?Four or five times a week"]
[null,"Six or seven times a week",0,{"$f":"COUNTIF($E$3:$E36,$E36)","v":6},"Accessing and engaging in work, training, education or volunteering - how often support is needed?","Accessing and engaging in work, training, education or volunteering - how often support is needed?Six or seven times a week"]
["Caring for others",null,null,{"$f":"COUNTIF($E$3:$E37,$E37)","v":1},"Caring for others","Caring for others"]
["Carrying out caring responsibilities for a child - how often is support needed?","None",0,{"$f":"COUNTIF($E$3:$E38,$E38)","v":1},"Carrying out caring responsibilities for a child - how often is support needed?","Carrying out caring responsibilities for a child - how often is support needed?None"]
[null,"Less than once a week",0,{"$f":"COUNTIF($E$3:$E39,$E39)","v":2},"Carrying out caring responsibilities for a child - how often is support needed?","Carrying out caring responsibilities for a child - how often is support needed?Less than once a week"]
[null,"Once a week",0,{"$f":"COUNTIF($E$3:$E40,$E40)","v":3},"Carrying out caring responsibilities for a child - how often is support needed?","Carrying out caring responsibilities for a child - how often is support needed?Once a week"]
[null,"Two or three times a week",0,{"$f":"COUNTIF($E$3:$E41,$E41)","v":4},"Carrying out caring responsibilities for a child - how often is support needed?","Carrying out caring responsibilities for a child - how often is support needed?Two or three times a week"]
[null,"A little support on most or all days",0,{"$f":"COUNTIF($E$3:$E42,$E42)","v":5},"Carrying out caring responsibilities for a child - how often is support needed?","Carrying out caring responsibilities for a child - how often is support needed?A little support on most or all days"]
[null,"A lot of support on most or all days",0,{"$f":"COUNTIF($E$3:$E43,$E43)","v":6},"Carrying out caring responsibilities for a child - how often is support needed?","Carrying out caring responsibilities for a child - how often is support needed?A lot of support on most or all days"]
["Home and living situation",null,null,{"$f":"COUNTIF($E$3:$E44,$E44)","v":1},"Home and living situation","Home and living situation"]
["Maintaining and cleaning the home - level of independence:","Usually or always manages alone",0,{"$f":"COUNTIF($E$3:$E45,$E45)","v":1},"Maintaining and cleaning the home - level of independence:","Maintaining and cleaning the home - level of independence:Usually or always manages alone"]
[null,"Sometimes manages alone (about half the time)",0,{"$f":"COUNTIF($E$3:$E46,$E46)","v":2},"Maintaining and cleaning the home - level of independence:","Maintaining and cleaning the home - level of independence:Sometimes manages alone (about half the time)"]
[null,"Usually or always needs someone to prompt or support",0,{"$f":"COUNTIF($E$3:$E47,$E47)","v":3},"Maintaining and cleaning the home - level of independence:","Maintaining and cleaning the home - level of independence:Usually or always needs someone to prompt or support"]
[null,"Usually or always needs someone else to do this",0,{"$f":"COUNTIF($E$3:$E48,$E48)","v":4},"Maintaining and cleaning the home - level of independence:","Maintaining and cleaning the home - level of independence:Usually or always needs someone else to do this"]
[null,"Usually or always needs two or more people to assist",0,{"$f":"COUNTIF($E$3:$E49,$E49)","v":5},"Maintaining and cleaning the home - level of independence:","Maintaining and cleaning the home - level of independence:Usually or always needs two or more people to assist"]
["Managing paperwork and finances",null,null,{"$f":"COUNTIF($E$3:$E50,$E50)","v":1},"Managing paperwork and finances","Managing paperwork and finances"]
["Managing day to day paperwork - is the person independent?","Yes",0,{"$f":"COUNTIF($E$3:$E51,$E51)","v":1},"Managing day to day paperwork - is the person independent?","Managing day to day paperwork - is the person independent?Yes"]
[null,"No",0,{"$f":"COUNTIF($E$3:$E52,$E52)","v":2},"Managing day to day paperwork - is the person independent?","Managing day to day paperwork - is the person independent?No"]
["Managing finance - is the person independent?","Yes",0,{"$f":"COUNTIF($E$3:$E53,$E53)","v":1},"Managing finance - is the person independent?","Managing finance - is the person independent?Yes"]
[null,"No",0,{"$f":"COUNTIF($E$3:$E54,$E54)","v":2},"Managing finance - is the person independent?","Managing finance - is the person independent?No"]
["Eating healthily and safely",null,null,{"$f":"COUNTIF($E$3:$E55,$E55)","v":1},"Eating healthily and safely","Eating healthily and safely"]
["Shopping for food and essentials - is the person independent?","Usually or always manages alone",0,{"$f":"COUNTIF($E$3:$E56,$E56)","v":1},"Shopping for food and essentials - is the person independent?","Shopping for food and essentials - is the person independent?Usually or always manages alone"]
[null,"Sometimes manages alone (about half the time)",0,{"$f":"COUNTIF($E$3:$E57,$E57)","v":2},"Shopping for food and essentials - is the person independent?","Shopping for food and essentials - is the person independent?Sometimes manages alone (about half the time)"]
[null,"Usually or always needs someone to prompt or support",0,{"$f":"COUNTIF($E$3:$E58,$E58)","v":3},"Shopping for food and essentials - is the person independent?","Shopping for food and essentials - is the person independent?Usually or always needs someone to prompt or support"]
[null,"Usually or always needs someone else to do this",0,{"$f":"COUNTIF($E$3:$E59,$E59)","v":4},"Shopping for food and essentials - is the person independent?","Shopping for food and essentials - is the person independent?Usually or always needs someone else to do this"]
[null,"Usually or always needs two or more people to assist",0,{"$f":"COUNTIF($E$3:$E60,$E60)","v":5},"Shopping for food and essentials - is the person independent?","Shopping for food and essentials - is the person independent?Usually or always needs two or more people to assist"]
["Preparing meals, snacks and drinks – is the person independent?","Usually or always manages alone",0,{"$f":"COUNTIF($E$3:$E61,$E61)","v":1},"Preparing meals, snacks and drinks – is the person independent?","Preparing meals, snacks and drinks – is the person independent?Usually or always manages alone"]
[null,"Sometimes manages alone (about half the time)",0,{"$f":"COUNTIF($E$3:$E62,$E62)","v":2},"Preparing meals, snacks and drinks – is the person independent?","Preparing meals, snacks and drinks – is the person independent?Sometimes manages alone (about half the time)"]
[null,"Usually or always needs someone to prompt or support",0,{"$f":"COUNTIF($E$3:$E63,$E63)","v":3},"Preparing meals, snacks and drinks – is the person independent?","Preparing meals, snacks and drinks – is the person independent?Usually or always needs someone to prompt or support"]
[null,"Usually or always needs someone else to do this",0,{"$f":"COUNTIF($E$3:$E64,$E64)","v":4},"Preparing meals, snacks and drinks – is the person independent?","Preparing meals, snacks and drinks – is the person independent?Usually or always needs someone else to do this"]
[null,"Usually or always needs two or more people to assist",0,{"$f":"COUNTIF($E$3:$E65,$E65)","v":5},"Preparing meals, snacks and drinks – is the person independent?","Preparing meals, snacks and drinks – is the person independent?Usually or always needs two or more people to assist"]
["Preparing meals, snack and drinks – how often is support needed?","None",0,{"$f":"COUNTIF($E$3:$E66,$E66)","v":1},"Preparing meals, snack and drinks – how often is support needed?",{"$f":"_xlfn.CONCAT(E66,B66)","v":"Preparing meals, snack and drinks – how often is support needed?None"}]
[null,"Less than daily",0,{"$f":"COUNTIF($E$3:$E67,$E67)","v":2},{"$f":"IF(A67=\"\",E66,A67)","v":"Preparing meals, snack and drinks – how often is support needed?"},"Preparing meals, snack and drinks – how often is support needed?Less than daily"]
[null,"Once a day",0,{"$f":"COUNTIF($E$3:$E68,$E68)","v":3},"Preparing meals, snack and drinks – how often is support needed?","Preparing meals, snack and drinks – how often is support needed?Once a day"]
[null,"Twice a day",0,{"$f":"COUNTIF($E$3:$E69,$E69)","v":4},"Preparing meals, snack and drinks – how often is support needed?","Preparing meals, snack and drinks – how often is support needed?Twice a day"]
[null,"Three times a day",0,{"$f":"COUNTIF($E$3:$E70,$E70)","v":5},"Preparing meals, snack and drinks – how often is support needed?","Preparing meals, snack and drinks – how often is support needed?Three times a day"]
[null,"Four times a day",0,{"$f":"COUNTIF($E$3:$E71,$E71)","v":6},"Preparing meals, snack and drinks – how often is support needed?","Preparing meals, snack and drinks – how often is support needed?Four times a day"]
[null,"Every two to three hours or more",0,{"$f":"COUNTIF($E$3:$E72,$E72)","v":7},"Preparing meals, snack and drinks – how often is support needed?","Preparing meals, snack and drinks – how often is support needed?Every two to three hours or more"]
["Eating and drinking – is the person independent?","Usually or always manages alone",0,{"$f":"COUNTIF($E$3:$E73,$E73)","v":1},"Eating and drinking – is the person independent?","Eating and drinking – is the person independent?Usually or always manages alone"]
[null,"Sometimes manages alone (about half the time)",0,{"$f":"COUNTIF($E$3:$E74,$E74)","v":2},"Eating and drinking – is the person independent?","Eating and drinking – is the person independent?Sometimes manages alone (about half the time)"]
[null,"Usually or always needs someone to prompt or support",0,{"$f":"COUNTIF($E$3:$E75,$E75)","v":3},"Eating and drinking – is the person independent?","Eating and drinking – is the person independent?Usually or always needs someone to prompt or support"]
[null,"Usually or always needs someone else to do this",0,{"$f":"COUNTIF($E$3:$E76,$E76)","v":4},"Eating and drinking – is the person independent?","Eating and drinking – is the person independent?Usually or always needs someone else to do this"]
[null,"Usually or always needs two or more people to assist",0,{"$f":"COUNTIF($E$3:$E77,$E77)","v":5},"Eating and drinking – is the person independent?","Eating and drinking – is the person independent?Usually or always needs two or more people to assist"]
["If someone needs to support the person being fed, how long does the support for this usually take?","Up to 30 minutes",0,{"$f":"COUNTIF($E$3:$E78,$E78)","v":1},"If someone needs to support the person being fed, how long does the support for this usually take?","If someone needs to support the person being fed, how long does the support for this usually take?Up to 30 minutes"]
[null,"More than 30 minutes",0,{"$f":"COUNTIF($E$3:$E79,$E79)","v":2},"If someone needs to support the person being fed, how long does the support for this usually take?","If someone needs to support the person being fed, how long does the support for this usually take?More than 30 minutes"]
[null,"Does not apply",0,{"$f":"COUNTIF($E$3:$E80,$E80)","v":3},"If someone needs to support the person being fed, how long does the support for this usually take?","If someone needs to support the person being fed, how long does the support for this usually take?Does not apply"]
["Personal Care",null,null,{"$f":"COUNTIF($E$3:$E81,$E81)","v":1},"Personal Care","Personal Care"]
["Getting dressed for the day and choosing appropriate clothes to wear – is the person independent?","Usually or always manages alone",0,{"$f":"COUNTIF($E$3:$E82,$E82)","v":1},"Getting dressed for the day and choosing appropriate clothes to wear – is the person independent?","Getting dressed for the day and choosing appropriate clothes to wear – is the person independent?Usually or always manages alone"]
[null,"Sometimes manages alone (about half the time)",0,{"$f":"COUNTIF($E$3:$E83,$E83)","v":2},"Getting dressed for the day and choosing appropriate clothes to wear – is the person independent?","Getting dressed for the day and choosing appropriate clothes to wear – is the person independent?Sometimes manages alone (about half the time)"]
[null,"Usually or always needs someone to prompt or support",0,{"$f":"COUNTIF($E$3:$E84,$E84)","v":3},"Getting dressed for the day and choosing appropriate clothes to wear – is the person independent?","Getting dressed for the day and choosing appropriate clothes to wear – is the person independent?Usually or always needs someone to prompt or support"]
[null,"Usually or always needs someone else to do this",0,{"$f":"COUNTIF($E$3:$E85,$E85)","v":4},"Getting dressed for the day and choosing appropriate clothes to wear – is the person independent?","Getting dressed for the day and choosing appropriate clothes to wear – is the person independent?Usually or always needs someone else to do this"]
[null,"Usually or always needs two or more people to assist",0,{"$f":"COUNTIF($E$3:$E86,$E86)","v":5},"Getting dressed for the day and choosing appropriate clothes to wear – is the person independent?","Getting dressed for the day and choosing appropriate clothes to wear – is the person independent?Usually or always needs two or more people to assist"]
["Getting undressed at the end of the day – is the person independent?","Usually or always manages alone",0,{"$f":"COUNTIF($E$3:$E87,$E87)","v":1},"Getting undressed at the end of the day – is the person independent?","Getting undressed at the end of the day – is the person independent?Usually or always manages alone"]
[null,"Sometimes manages alone (about half the time)",0,{"$f":"COUNTIF($E$3:$E88,$E88)","v":2},"Getting undressed at the end of the day – is the person independent?","Getting undressed at the end of the day – is the person independent?Sometimes manages alone (about half the time)"]
[null,"Usually or always needs someone to prompt or support",0,{"$f":"COUNTIF($E$3:$E89,$E89)","v":3},"Getting undressed at the end of the day – is the person independent?","Getting undressed at the end of the day – is the person independent?Usually or always needs someone to prompt or support"]
[null,"Usually or always needs someone else to do this",0,{"$f":"COUNTIF($E$3:$E90,$E90)","v":4},"Getting undressed at the end of the day – is the person independent?","Getting undressed at the end of the day – is the person independent?Usually or always needs someone else to do this"]
[null,"Usually or always needs two or more people to assist",0,{"$f":"COUNTIF($E$3:$E91,$E91)","v":5},"Getting undressed at the end of the day – is the person independent?","Getting undressed at the end of the day – is the person independent?Usually or always needs two or more people to assist"]
["Managing person appearance – is the person independent?\nThis includes washing hands and face, brushing hair and nails, and shaving","Usually or always manages alone",0,{"$f":"COUNTIF($E$3:$E92,$E92)","v":1},"Managing person appearance – is the person independent?\nThis includes washing hands and face, brushing hair and nails, and shaving","Managing person appearance – is the person independent?\nThis includes washing hands and face, brushing hair and nails, and shavingUsually or always manages alone"]
[null,"Sometimes manages alone (about half the time)",0,{"$f":"COUNTIF($E$3:$E93,$E93)","v":2},"Managing person appearance – is the person independent?\nThis includes washing hands and face, brushing hair and nails, and shaving","Managing person appearance – is the person independent?\nThis includes washing hands and face, brushing hair and nails, and shavingSometimes manages alone (about half the time)"]
[null,"Usually or always needs someone to prompt or support",0,{"$f":"COUNTIF($E$3:$E94,$E94)","v":3},"Managing person appearance – is the person independent?\nThis includes washing hands and face, brushing hair and nails, and shaving","Managing person appearance – is the person independent?\nThis includes washing hands and face, brushing hair and nails, and shavingUsually or always needs someone to prompt or support"]
[null,"Usually or always needs someone else to do this",0,{"$f":"COUNTIF($E$3:$E95,$E95)","v":4},"Managing person appearance – is the person independent?\nThis includes washing hands and face, brushing hair and nails, and shaving","Managing person appearance – is the person independent?\nThis includes washing hands and face, brushing hair and nails, and shavingUsually or always needs someone else to do this"]
[null,"Usually or always needs two or more people to assist",0,{"$f":"COUNTIF($E$3:$E96,$E96)","v":5},"Managing person appearance – is the person independent?\nThis includes washing hands and face, brushing hair and nails, and shaving","Managing person appearance – is the person independent?\nThis includes washing hands and face, brushing hair and nails, and shavingUsually or always needs two or more people to assist"]
["Washing whole body – is the person independent?\nThis includes taking a bath or shower, washing hair or having a strip wash","Usually or always manages alone",0,{"$f":"COUNTIF($E$3:$E97,$E97)","v":1},"Washing whole body – is the person independent?\nThis includes taking a bath or shower, washing hair or having a strip wash","Washing whole body – is the person independent?\nThis includes taking a bath or shower, washing hair or having a strip washUsually or always manages alone"]
[null,"Sometimes manages alone (about half the time)",0,{"$f":"COUNTIF($E$3:$E98,$E98)","v":2},"Washing whole body – is the person independent?\nThis includes taking a bath or shower, washing hair or having a strip wash","Washing whole body – is the person independent?\nThis includes taking a bath or shower, washing hair or having a strip washSometimes manages alone (about half the time)"]
[null,"Usually or always needs someone to prompt or support",0,{"$f":"COUNTIF($E$3:$E99,$E99)","v":3},"Washing whole body – is the person independent?\nThis includes taking a bath or shower, washing hair or having a strip wash","Washing whole body – is the person independent?\nThis includes taking a bath or shower, washing hair or having a strip washUsually or always needs someone to prompt or support"]
[null,"Usually or always needs someone else to do this",0,{"$f":"COUNTIF($E$3:$E100,$E100)","v":4},"Washing whole body – is the person independent?\nThis includes taking a bath or shower, washing hair or having a strip wash","Washing whole body – is the person independent?\nThis includes taking a bath or shower, washing hair or having a strip washUsually or always needs someone else to do this"]
[null,"Usually or always needs two or more people to assist",0,{"$f":"COUNTIF($E$3:$E101,$E101)","v":5},"Washing whole body – is the person independent?\nThis includes taking a bath or shower, washing hair or having a strip wash","Washing whole body – is the person independent?\nThis includes taking a bath or shower, washing hair or having a strip washUsually or always needs two or more people to assist"]
["Washing whole body – how often is support needed?","None or less than weekly",0,{"$f":"COUNTIF($E$3:$E102,$E102)","v":1},"Washing whole body – how often is support needed?","Washing whole body – how often is support needed?None or less than weekly"]
[null,"Once or twice a week",0,{"$f":"COUNTIF($E$3:$E103,$E103)","v":2},"Washing whole body – how often is support needed?","Washing whole body – how often is support needed?Once or twice a week"]
[null,"Three or four times a week",0,{"$f":"COUNTIF($E$3:$E104,$E104)","v":3},"Washing whole body – how often is support needed?","Washing whole body – how often is support needed?Three or four times a week"]
[null,"Five or six times a week",0,{"$f":"COUNTIF($E$3:$E105,$E105)","v":4},"Washing whole body – how often is support needed?","Washing whole body – how often is support needed?Five or six times a week"]
[null,"Once a day",0,{"$f":"COUNTIF($E$3:$E106,$E106)","v":5},"Washing whole body – how often is support needed?","Washing whole body – how often is support needed?Once a day"]
[null,"Twice a day",0,{"$f":"COUNTIF($E$3:$E107,$E107)","v":6},"Washing whole body – how often is support needed?","Washing whole body – how often is support needed?Twice a day"]
[null,"Three times a day",0,{"$f":"COUNTIF($E$3:$E108,$E108)","v":7},"Washing whole body – how often is support needed?","Washing whole body – how often is support needed?Three times a day"]
[null,"Four times a day",0,{"$f":"COUNTIF($E$3:$E109,$E109)","v":8},"Washing whole body – how often is support needed?","Washing whole body – how often is support needed?Four times a day"]
[null,"Every two to three hours or more",0,{"$f":"COUNTIF($E$3:$E110,$E110)","v":9},"Washing whole body – how often is support needed?","Washing whole body – how often is support needed?Every two to three hours or more"]
["Using the toilet and managing continence – is the person independent?","Usually or always manages alone",0,{"$f":"COUNTIF($E$3:$E111,$E111)","v":1},"Using the toilet and managing continence – is the person independent?","Using the toilet and managing continence – is the person independent?Usually or always manages alone"]
[null,"Sometimes manages alone (about half the time)",0,{"$f":"COUNTIF($E$3:$E112,$E112)","v":2},"Using the toilet and managing continence – is the person independent?","Using the toilet and managing continence – is the person independent?Sometimes manages alone (about half the time)"]
[null,"Usually or always needs someone to prompt or support",0,{"$f":"COUNTIF($E$3:$E113,$E113)","v":3},"Using the toilet and managing continence – is the person independent?","Using the toilet and managing continence – is the person independent?Usually or always needs someone to prompt or support"]
[null,"Usually or always needs someone else to do this",0,{"$f":"COUNTIF($E$3:$E114,$E114)","v":4},"Using the toilet and managing continence – is the person independent?","Using the toilet and managing continence – is the person independent?Usually or always needs someone else to do this"]
[null,"Usually or always needs two or more people to assist",0,{"$f":"COUNTIF($E$3:$E115,$E115)","v":5},"Using the toilet and managing continence – is the person independent?","Using the toilet and managing continence – is the person independent?Usually or always needs two or more people to assist"]
["Using the toilet and managing continence – how often is support needed?","None",0,{"$f":"COUNTIF($E$3:$E116,$E116)","v":1},"Using the toilet and managing continence – how often is support needed?","Using the toilet and managing continence – how often is support needed?None"]
[null,"Less than daily",0,{"$f":"COUNTIF($E$3:$E117,$E117)","v":2},"Using the toilet and managing continence – how often is support needed?","Using the toilet and managing continence – how often is support needed?Less than daily"]
[null,"Once a day",0,{"$f":"COUNTIF($E$3:$E118,$E118)","v":3},"Using the toilet and managing continence – how often is support needed?","Using the toilet and managing continence – how often is support needed?Once a day"]
[null,"Twice a day",0,{"$f":"COUNTIF($E$3:$E119,$E119)","v":4},"Using the toilet and managing continence – how often is support needed?","Using the toilet and managing continence – how often is support needed?Twice a day"]
[null,"Three times a day",0,{"$f":"COUNTIF($E$3:$E120,$E120)","v":5},"Using the toilet and managing continence – how often is support needed?","Using the toilet and managing continence – how often is support needed?Three times a day"]
[null,"Four times a day",0,{"$f":"COUNTIF($E$3:$E121,$E121)","v":6},"Using the toilet and managing continence – how often is support needed?","Using the toilet and managing continence – how often is support needed?Four times a day"]
[null,"Every two to three hours or more",0,{"$f":"COUNTIF($E$3:$E122,$E122)","v":7},"Using the toilet and managing continence – how often is support needed?","Using the toilet and managing continence – how often is support needed?Every two to three hours or more"]
["Moving around the home",null,null,{"$f":"COUNTIF($E$3:$E123,$E123)","v":1},"Moving around the home","Moving around the home"]
["Managing transfers – is the person independent?\nThis might include between places such as bed, chair and toilet","Usually or always manages alone",0,{"$f":"COUNTIF($E$3:$E124,$E124)","v":1},"Managing transfers – is the person independent?\nThis might include between places such as bed, chair and toilet","Managing transfers – is the person independent?\nThis might include between places such as bed, chair and toiletUsually or always manages alone"]
[null,"Sometimes manages alone (about half the time)",0,{"$f":"COUNTIF($E$3:$E125,$E125)","v":2},"Managing transfers – is the person independent?\nThis might include between places such as bed, chair and toilet","Managing transfers – is the person independent?\nThis might include between places such as bed, chair and toiletSometimes manages alone (about half the time)"]
[null,"Usually or always needs someone to prompt or support",0,{"$f":"COUNTIF($E$3:$E126,$E126)","v":3},"Managing transfers – is the person independent?\nThis might include between places such as bed, chair and toilet","Managing transfers – is the person independent?\nThis might include between places such as bed, chair and toiletUsually or always needs someone to prompt or support"]
[null,"Usually or always needs someone else to do this",0,{"$f":"COUNTIF($E$3:$E127,$E127)","v":4},"Managing transfers – is the person independent?\nThis might include between places such as bed, chair and toilet","Managing transfers – is the person independent?\nThis might include between places such as bed, chair and toiletUsually or always needs someone else to do this"]
[null,"Usually or always needs two or more people to assist",0,{"$f":"COUNTIF($E$3:$E128,$E128)","v":5},"Managing transfers – is the person independent?\nThis might include between places such as bed, chair and toilet","Managing transfers – is the person independent?\nThis might include between places such as bed, chair and toiletUsually or always needs two or more people to assist"]
["Can the person bear their own weight or assisted by someone to help them transfer?","Yes",0,{"$f":"COUNTIF($E$3:$E129,$E129)","v":1},"Can the person bear their own weight or assisted by someone to help them transfer?","Can the person bear their own weight or assisted by someone to help them transfer?Yes"]
[null,"No",0,{"$f":"COUNTIF($E$3:$E130,$E130)","v":2},"Can the person bear their own weight or assisted by someone to help them transfer?",{"$f":"_xlfn.CONCAT(E130,B130)","v":"Can the person bear their own weight or assisted by someone to help them transfer?No"}]
["To what extent does the person’s weight, frame, balance or strength affect their mobility?\nFor example, if they are overweight, underweight or frail","There is no effect",0,{"$f":"COUNTIF($E$3:$E131,$E131)","v":1},{"$f":"IF(A131=\"\",E130,A131)","v":"To what extent does the person’s weight, frame, balance or strength affect their mobility?\nFor example, if they are overweight, underweight or frail"},"To what extent does the person’s weight, frame, balance or strength affect their mobility?\nFor example, if they are overweight, underweight or frailThere is no effect"]
[null,"There is minor effect (getting around takes a little longer)",0,{"$f":"COUNTIF($E$3:$E132,$E132)","v":2},"To what extent does the person’s weight, frame, balance or strength affect their mobility?\nFor example, if they are overweight, underweight or frail","To what extent does the person’s weight, frame, balance or strength affect their mobility?\nFor example, if they are overweight, underweight or frailThere is minor effect (getting around takes a little longer)"]
[null,"There is a major effect (getting around takes a lot longer)",0,{"$f":"COUNTIF($E$3:$E133,$E133)","v":3},"To what extent does the person’s weight, frame, balance or strength affect their mobility?\nFor example, if they are overweight, underweight or frail","To what extent does the person’s weight, frame, balance or strength affect their mobility?\nFor example, if they are overweight, underweight or frailThere is a major effect (getting around takes a lot longer)"]
["Staying comfortable and repositioning – is the person independent?","Usually or always manages alone",0,{"$f":"COUNTIF($E$3:$E134,$E134)","v":1},"Staying comfortable and repositioning – is the person independent?","Staying comfortable and repositioning – is the person independent?Usually or always manages alone"]
[null,"Sometimes manages alone (about half the time)",0,{"$f":"COUNTIF($E$3:$E135,$E135)","v":2},"Staying comfortable and repositioning – is the person independent?","Staying comfortable and repositioning – is the person independent?Sometimes manages alone (about half the time)"]
[null,"Usually or always needs someone to prompt or support",0,{"$f":"COUNTIF($E$3:$E136,$E136)","v":3},"Staying comfortable and repositioning – is the person independent?","Staying comfortable and repositioning – is the person independent?Usually or always needs someone to prompt or support"]
[null,"Usually or always needs someone else to do this",0,{"$f":"COUNTIF($E$3:$E137,$E137)","v":4},"Staying comfortable and repositioning – is the person independent?","Staying comfortable and repositioning – is the person independent?Usually or always needs someone else to do this"]
[null,"Usually or always needs two or more people to assist",0,{"$f":"COUNTIF($E$3:$E138,$E138)","v":5},"Staying comfortable and repositioning – is the person independent?","Staying comfortable and repositioning – is the person independent?Usually or always needs two or more people to assist"]
["Medication",null,null,{"$f":"COUNTIF($E$3:$E139,$E139)","v":1},"Medication","Medication"]
["Taking or applying medication – is the person independent?","Manages independently",0,{"$f":"COUNTIF($E$3:$E140,$E140)","v":1},"Taking or applying medication – is the person independent?","Taking or applying medication – is the person independent?Manages independently"]
[null,"Manages with a reminder or alert system",0,{"$f":"COUNTIF($E$3:$E141,$E141)","v":2},"Taking or applying medication – is the person independent?","Taking or applying medication – is the person independent?Manages with a reminder or alert system"]
[null,"Manages with someone present to supervise",0,{"$f":"COUNTIF($E$3:$E142,$E142)","v":3},"Taking or applying medication – is the person independent?","Taking or applying medication – is the person independent?Manages with someone present to supervise"]
[null,"Needs a carer or nurse to administer",0,{"$f":"COUNTIF($E$3:$E143,$E143)","v":4},"Taking or applying medication – is the person independent?","Taking or applying medication – is the person independent?Needs a carer or nurse to administer"]
[null,"Needs a specifically-trained carer or nurse to administer",0,{"$f":"COUNTIF($E$3:$E144,$E144)","v":5},"Taking or applying medication – is the person independent?","Taking or applying medication – is the person independent?Needs a specifically-trained carer or nurse to administer"]
["Taking or applying medication – how often is support needed?","None",0,{"$f":"COUNTIF($E$3:$E145,$E145)","v":1},"Taking or applying medication – how often is support needed?","Taking or applying medication – how often is support needed?None"]
[null,"Less than daily or as needed",0,{"$f":"COUNTIF($E$3:$E146,$E146)","v":2},{"$f":"IF(A146=\"\",E145,A146)","v":"Taking or applying medication – how often is support needed?"},{"$f":"_xlfn.CONCAT(E146,B146)","v":"Taking or applying medication – how often is support needed?Less than daily or as needed"}]
[null,"Once a day",0,{"$f":"COUNTIF($E$3:$E147,$E147)","v":3},"Taking or applying medication – how often is support needed?","Taking or applying medication – how often is support needed?Once a day"]
[null,"Twice a day",0,{"$f":"COUNTIF($E$3:$E148,$E148)","v":4},"Taking or applying medication – how often is support needed?","Taking or applying medication – how often is support needed?Twice a day"]
[null,"Three times a day",0,{"$f":"COUNTIF($E$3:$E149,$E149)","v":5},"Taking or applying medication – how often is support needed?","Taking or applying medication – how often is support needed?Three times a day"]
[null,"Four times a day",0,{"$f":"COUNTIF($E$3:$E150,$E150)","v":6},"Taking or applying medication – how often is support needed?","Taking or applying medication – how often is support needed?Four times a day"]
[null,"Every two to three hours or more",0,{"$f":"COUNTIF($E$3:$E151,$E151)","v":7},"Taking or applying medication – how often is support needed?","Taking or applying medication – how often is support needed?Every two to three hours or more"]
["Mental well-being",null,null,{"$f":"COUNTIF($E$3:$E152,$E152)","v":1},"Mental well-being",{"$f":"_xlfn.CONCAT(E152,B152)","v":"Mental well-being"}]
["How much difficulty does the person have with remembering people or things or finding their way around?","Little or no difficulty with memory or finding their way around",0,{"$f":"COUNTIF($E$3:$E153,$E153)","v":1},"How much difficulty does the person have with remembering people or things or finding their way around?",{"$f":"_xlfn.CONCAT(E153,B153)","v":"How much difficulty does the person have with remembering people or things or finding their way around?Little or no difficulty with memory or finding their way around"}]
[null,"Mild difficulties with memory or finding their way around",0,{"$f":"COUNTIF($E$3:$E154,$E154)","v":2},"How much difficulty does the person have with remembering people or things or finding their way around?",{"$f":"_xlfn.CONCAT(E154,B154)","v":"How much difficulty does the person have with remembering people or things or finding their way around?Mild difficulties with memory or finding their way around"}]
[null,"Significant difficulties with memory or finding their way around",0,{"$f":"COUNTIF($E$3:$E155,$E155)","v":3},"How much difficulty does the person have with remembering people or things or finding their way around?","How much difficulty does the person have with remembering people or things or finding their way around?Significant difficulties with memory or finding their way around"]
[null,"Severe difficulties with memory or finding their way around",0,{"$f":"COUNTIF($E$3:$E156,$E156)","v":4},"How much difficulty does the person have with remembering people or things or finding their way around?","How much difficulty does the person have with remembering people or things or finding their way around?Severe difficulties with memory or finding their way around"]
[null,"Very severe difficulties with memory or finding their way around",0,{"$f":"COUNTIF($E$3:$E157,$E157)","v":5},"How much difficulty does the person have with remembering people or things or finding their way around?","How much difficulty does the person have with remembering people or things or finding their way around?Very severe difficulties with memory or finding their way around"]
["Can the person plan and make decisions about their daily life?","Independent with planning and making decisions",0,{"$f":"COUNTIF($E$3:$E158,$E158)","v":1},{"$f":"IF(A158=\"\",E157,A158)","v":"Can the person plan and make decisions about their daily life?"},"Can the person plan and make decisions about their daily life?Independent with planning and making decisions"]
[null,"Mostly independent with planning and making decisions",0,{"$f":"COUNTIF($E$3:$E159,$E159)","v":2},"Can the person plan and make decisions about their daily life?","Can the person plan and make decisions about their daily life?Mostly independent with planning and making decisions"]
[null,"Partial ability to plan and make decisions",0,{"$f":"COUNTIF($E$3:$E160,$E160)","v":3},"Can the person plan and make decisions about their daily life?","Can the person plan and make decisions about their daily life?Partial ability to plan and make decisions"]
[null,"Limited ability to plan and make decisions",0,{"$f":"COUNTIF($E$3:$E161,$E161)","v":4},"Can the person plan and make decisions about their daily life?","Can the person plan and make decisions about their daily life?Limited ability to plan and make decisions"]
[null,"Cannot safely plan and make decisions",0,{"$f":"COUNTIF($E$3:$E162,$E162)","v":5},"Can the person plan and make decisions about their daily life?","Can the person plan and make decisions about their daily life?Cannot safely plan and make decisions"]
["How is the person’s day-to-day emotional well-being?","Emotional well-being is consistently good",0,{"$f":"COUNTIF($E$3:$E163,$E163)","v":1},"How is the person’s day-to-day emotional well-being?","How is the person’s day-to-day emotional well-being?Emotional well-being is consistently good"]
[null,"Emotional well-being is often good",0,{"$f":"COUNTIF($E$3:$E164,$E164)","v":2},"How is the person’s day-to-day emotional well-being?","How is the person’s day-to-day emotional well-being?Emotional well-being is often good"]
[null,"Emotional well-being is only sometimes good",0,{"$f":"COUNTIF($E$3:$E165,$E165)","v":3},"How is the person’s day-to-day emotional well-being?","How is the person’s day-to-day emotional well-being?Emotional well-being is only sometimes good"]
[null,"Emotional well-being is often not good",0,{"$f":"COUNTIF($E$3:$E166,$E166)","v":4},{"$f":"IF(A166=\"\",E165,A166)","v":"How is the person’s day-to-day emotional well-being?"},{"$f":"_xlfn.CONCAT(E166,B166)","v":"How is the person’s day-to-day emotional well-being?Emotional well-being is often not good"}]
[null,"Emotional well-being is consistently not good",0,{"$f":"COUNTIF($E$3:$E167,$E167)","v":5},"How is the person’s day-to-day emotional well-being?","How is the person’s day-to-day emotional well-being?Emotional well-being is consistently not good"]
["Does the person’s behaviour ever worry or upset them or cause concerns to others?","There are no concerns about behaviour",0,{"$f":"COUNTIF($E$3:$E168,$E168)","v":1},"Does the person’s behaviour ever worry or upset them or cause concerns to others?","Does the person’s behaviour ever worry or upset them or cause concerns to others?There are no concerns about behaviour"]
[null,"Behaviour causes minor concern",0,{"$f":"COUNTIF($E$3:$E169,$E169)","v":2},"Does the person’s behaviour ever worry or upset them or cause concerns to others?","Does the person’s behaviour ever worry or upset them or cause concerns to others?Behaviour causes minor concern"]
[null,"Behaviour causes significant concern",0,{"$f":"COUNTIF($E$3:$E170,$E170)","v":3},"Does the person’s behaviour ever worry or upset them or cause concerns to others?","Does the person’s behaviour ever worry or upset them or cause concerns to others?Behaviour causes significant concern"]
[null,"Behaviour causes serious concern",0,{"$f":"COUNTIF($E$3:$E171,$E171)","v":4},"Does the person’s behaviour ever worry or upset them or cause concerns to others?","Does the person’s behaviour ever worry or upset them or cause concerns to others?Behaviour causes serious concern"]
[null,"Behaviour causes constant concern of harm",0,{"$f":"COUNTIF($E$3:$E172,$E172)","v":5},"Does the person’s behaviour ever worry or upset them or cause concerns to others?","Does the person’s behaviour ever worry or upset them or cause concerns to others?Behaviour causes constant concern of harm"]
["Does the person find it challenging to engage with others who are offering support?\nThis could be due to difficulties with their thinking, emotional well-being or behaviour","No issues in engaging with support",0,{"$f":"COUNTIF($E$3:$E173,$E173)","v":1},"Does the person find it challenging to engage with others who are offering support?\nThis could be due to difficulties with their thinking, emotional well-being or behaviour","Does the person find it challenging to engage with others who are offering support?\nThis could be due to difficulties with their thinking, emotional well-being or behaviourNo issues in engaging with support"]
[null,"Needs encouragement to engage with support",0,{"$f":"COUNTIF($E$3:$E174,$E174)","v":2},"Does the person find it challenging to engage with others who are offering support?\nThis could be due to difficulties with their thinking, emotional well-being or behaviour","Does the person find it challenging to engage with others who are offering support?\nThis could be due to difficulties with their thinking, emotional well-being or behaviourNeeds encouragement to engage with support"]
[null,"Often unable or unwilling to engage with support",0,{"$f":"COUNTIF($E$3:$E175,$E175)","v":3},"Does the person find it challenging to engage with others who are offering support?\nThis could be due to difficulties with their thinking, emotional well-being or behaviour","Does the person find it challenging to engage with others who are offering support?\nThis could be due to difficulties with their thinking, emotional well-being or behaviourOften unable or unwilling to engage with support"]
[null,"Rarely able or willing to engage with support",0,{"$f":"COUNTIF($E$3:$E176,$E176)","v":4},"Does the person find it challenging to engage with others who are offering support?\nThis could be due to difficulties with their thinking, emotional well-being or behaviour","Does the person find it challenging to engage with others who are offering support?\nThis could be due to difficulties with their thinking, emotional well-being or behaviourRarely able or willing to engage with support"]
[null,"Completely unable or unwilling to engage with support",0,{"$f":"COUNTIF($E$3:$E177,$E177)","v":5},"Does the person find it challenging to engage with others who are offering support?\nThis could be due to difficulties with their thinking, emotional well-being or behaviour","Does the person find it challenging to engage with others who are offering support?\nThis could be due to difficulties with their thinking, emotional well-being or behaviourCompletely unable or unwilling to engage with support"]
["Staying safe at home",null,null,{"$f":"COUNTIF($E$3:$E178,$E178)","v":1},"Staying safe at home","Staying safe at home"]
["Staying safe during the day – is the person independent?","Stays safe without any kind of support",0,{"$f":"COUNTIF($E$3:$E179,$E179)","v":1},"Staying safe during the day – is the person independent?","Staying safe during the day – is the person independent?Stays safe without any kind of support"]
[null,"Stays safe with an alarm or alert system only",0,{"$f":"COUNTIF($E$3:$E180,$E180)","v":2},"Staying safe during the day – is the person independent?","Staying safe during the day – is the person independent?Stays safe with an alarm or alert system only"]
[null,"Stays safe if someone is present at times through the week",0,{"$f":"COUNTIF($E$3:$E181,$E181)","v":3},"Staying safe during the day – is the person independent?","Staying safe during the day – is the person independent?Stays safe if someone is present at times through the week"]
[null,"Stays safe if someone is present at times through the day",0,{"$f":"COUNTIF($E$3:$E182,$E182)","v":4},"Staying safe during the day – is the person independent?","Staying safe during the day – is the person independent?Stays safe if someone is present at times through the day"]
[null,"Stays safe only if someone is always present within the home",0,{"$f":"COUNTIF($E$3:$E183,$E183)","v":5},"Staying safe during the day – is the person independent?","Staying safe during the day – is the person independent?Stays safe only if someone is always present within the home"]
[null,"Stays safe only with constant one-to-one supervision",0,{"$f":"COUNTIF($E$3:$E184,$E184)","v":6},"Staying safe during the day – is the person independent?","Staying safe during the day – is the person independent?Stays safe only with constant one-to-one supervision"]
[null,"Stays safe only with constant two-to-one supervision (or more)",0,{"$f":"COUNTIF($E$3:$E185,$E185)","v":7},"Staying safe during the day – is the person independent?","Staying safe during the day – is the person independent?Stays safe only with constant two-to-one supervision (or more)"]
["Staying safe during the night – is the person independent?","Safe without any kind of support",0,{"$f":"COUNTIF($E$3:$E186,$E186)","v":1},"Staying safe during the night – is the person independent?","Staying safe during the night – is the person independent?Safe without any kind of support"]
[null,"Safe with an alarm or alert system only",0,{"$f":"COUNTIF($E$3:$E187,$E187)","v":2},"Staying safe during the night – is the person independent?","Staying safe during the night – is the person independent?Safe with an alarm or alert system only"]
[null,"Safe alone but need help with 1 task per night",0,{"$f":"COUNTIF($E$3:$E188,$E188)","v":3},"Staying safe during the night – is the person independent?","Staying safe during the night – is the person independent?Safe alone but need help with 1 task per night"]
[null,"Safe alone but need help with 2 tasks per night",0,{"$f":"COUNTIF($E$3:$E189,$E189)","v":4},"Staying safe during the night – is the person independent?","Staying safe during the night – is the person independent?Safe alone but need help with 2 tasks per night"]
[null,"Safe alone but need help with 3 tasks per night",0,{"$f":"COUNTIF($E$3:$E190,$E190)","v":5},"Staying safe during the night – is the person independent?","Staying safe during the night – is the person independent?Safe alone but need help with 3 tasks per night"]
[null,"Safe only if a person is nearby all night",0,{"$f":"COUNTIF($E$3:$E191,$E191)","v":6},"Staying safe during the night – is the person independent?","Staying safe during the night – is the person independent?Safe only if a person is nearby all night"]
[null,"Safe only with 2 or more people near all night",0,{"$f":"COUNTIF($E$3:$E192,$E192)","v":7},"Staying safe during the night – is the person independent?","Staying safe during the night – is the person independent?Safe only with 2 or more people near all night"]
["Staying safe during the day or night - how often is support needed?","Does not apply (can be safe in the home alone)",0,{"$f":"COUNTIF($E$3:$E193,$E193)","v":1},"Staying safe during the day or night - how often is support needed?","Staying safe during the day or night - how often is support needed?Does not apply (can be safe in the home alone)"]
[null,"Usually manages through the night without help",0,{"$f":"COUNTIF($E$3:$E194,$E194)","v":2},"Staying safe during the day or night - how often is support needed?","Staying safe during the day or night - how often is support needed?Usually manages through the night without help"]
[null,"Needs help once or twice per night",0,{"$f":"COUNTIF($E$3:$E195,$E195)","v":3},"Staying safe during the day or night - how often is support needed?","Staying safe during the day or night - how often is support needed?Needs help once or twice per night"]
[null,"Needs a little help 3 or 4 times per night",0,{"$f":"COUNTIF($E$3:$E196,$E196)","v":4},"Staying safe during the day or night - how often is support needed?","Staying safe during the day or night - how often is support needed?Needs a little help 3 or 4 times per night"]
[null,"Needs substantial help 3 or 4 times a night",0,{"$f":"COUNTIF($E$3:$E197,$E197)","v":5},"Staying safe during the day or night - how often is support needed?","Staying safe during the day or night - how often is support needed?Needs substantial help 3 or 4 times a night"]
[null,"Needs substantial help all/nearly all night",0,{"$f":"COUNTIF($E$3:$E198,$E198)","v":6},"Staying safe during the day or night - how often is support needed?","Staying safe during the day or night - how often is support needed?Needs substantial help all/nearly all night"]